bitfinex/quotes_SOLUSD_20250108
["timestamp","ask_amount","ask_price","bid_price","bid_amount"]
[1736349408399,3.1,197.41,197.31,40.0142691]
[1736349408600,3.37597095,197.41,197.31,40.0142691]
[1736349408838,3.1,197.41,197.33,40.0142691]
[1736349409036,3.1,197.43,197.38,40.0142691]
[1736349409201,3.1,197.43,197.35,40.0142691]
[1736349409399,0.27597095,197.42,197.28,40.0142691]
[1736349409595,0.27597095,197.42,197.29,40.0142691]
[1736349409800,0.27597095,197.42,197.31,40.0142691]
[1736349410042,0.27597095,197.42,197.3,40.0142691]
[1736349410212,0.27597095,197.42,197.28,40.0142691]
[1736349410536,0.27597095,197.42,197.31,40.0142691]
[1736349410716,0.27597095,197.42,197.32,40.0142691]
[1736349410914,0.27597095,197.42,197.29,40.0142691]
[1736349411117,20.0,197.35,197.18,6.2344]
[1736349411427,20.0,197.35,197.14,5.0]
[1736349411428,3.37597095,197.34,197.19,40.0142691]
[1736349411722,3.37597095,197.34,197.23,40.0142691]
[1736349412127,21.53,197.35,197.24,40.0142691]
[1736349412321,3.1,197.33,197.24,40.0142691]
[1736349412714,3.1,197.33,197.27,40.0142691]
[1736349412912,3.08,197.32,197.29,40.0142691]
[1736349413134,3.08,197.32,197.28,40.0142691]
[1736349413311,3.08,197.32,197.22,23.776884]
[1736349413312,6.2706,197.38,197.3,40.0142691]
[1736349413510,3.08,197.37,197.23,0.75995752]
[1736349413832,3.08,197.37,197.33,40.0142691]
[1736349414036,6.0824,197.43,197.25,5.0]
[1736349414037,6.0824,197.43,197.35,40.0142691]
[1736349414207,3.12,197.42,197.34,40.0142691]
[1736349414411,3.12,197.42,197.31,40.77401412]
[1736349414633,20.0,197.4,197.31,40.0142691]
[1736349414835,20.0,197.4,197.32,40.0142691]
[1736349415145,20.0,197.4,197.33,40.0142691]
[1736349415305,20.0,197.4,197.32,63.7911531]
[1736349415651,3.12,197.42,197.34,40.0142691]
[1736349416008,3.12,197.42,197.32,40.0142691]
[1736349416215,3.39597095,197.42,197.32,40.0142691]
[1736349416413,3.12,197.42,197.32,40.0142691]
[1736349416739,3.12,197.42,197.34,40.0142691]
[1736349416944,3.12,197.42,197.33,40.0142691]
[1736349417637,3.12,197.41,197.38,40.0142691]
[1736349417838,3.12,197.42,197.39,40.0142691]
[1736349418046,3.12,197.42,197.38,40.0142691]
[1736349418218,3.12,197.42,197.39,40.0142691]
[1736349418537,3.12,197.43,197.39,40.0142691]
[1736349418755,3.12,197.43,197.38,40.0142691]
[1736349419240,3.12,197.43,197.36,40.0142691]
[1736349420048,3.12,197.43,197.38,40.0142691]
[1736349420359,3.12,197.43,197.36,40.0142691]
[1736349420650,3.12,197.43,197.34,0.75965078]
[1736349420651,3.12,197.43,197.34,40.77391988]
[1736349420858,3.12,197.43,197.32,40.0142691]
[1736349421150,6.2723,197.48,197.41,40.0142691]
[1736349421311,6.2662,197.53,197.46,40.0142691]
[1736349421515,3.1,197.52,197.47,40.0142691]
[1736349421828,3.1,197.52,197.48,40.77354362]
[1736349422139,0.27597095,197.57,197.44,40.77353083]
[1736349422341,0.27597095,197.57,197.43,40.0142691]
[1736349422342,3.1,197.56,197.43,40.0142691]
[1736349422512,0.27597095,197.55,197.41,40.0142691]
[1736349422712,23.1,197.56,197.45,40.0142691]
[1736349423042,3.1,197.55,197.47,40.0142691]
[1736349423222,3.1,197.55,197.48,40.0142691]
[1736349423407,3.1,197.55,197.49,40.77354164]
[1736349423616,0.27597095,197.64,197.53,40.0142691]
[1736349423823,17.13155776,197.65,197.56,40.0142691]
[1736349424013,17.13155776,197.65,197.57,40.77319848]
[1736349424215,17.13155776,197.65,197.58,40.0142691]
[1736349424521,7.76445776,197.7,197.62,40.0142691]
[1736349424716,7.76445776,197.7,197.63,40.77295195]
[1736349424937,7.76445776,197.7,197.61,40.0142691]
[1736349425138,7.76445776,197.7,197.62,0.75874071]
[1736349425318,7.76445776,197.7,197.63,40.0142691]
[1736349425650,6.2671,197.71,197.64,0.75875874]
[1736349425651,9.3471,197.71,197.64,0.75875874]
[1736349425820,9.3471,197.71,197.59,40.0142691]
[1736349426143,3.08,197.7,197.59,40.0142691]
[1736349426356,20.0,197.68,197.58,40.7730599]
[1736349426516,20.0,197.68,197.59,40.0142691]
[1736349426828,20.0,197.68,197.57,40.0142691]
[1736349427136,20.0,197.64,197.51,40.0142691]
[1736349427349,20.0,197.64,197.52,40.0142691]
[1736349427547,0.27597095,197.69,197.55,40.0142691]
[1736349427733,0.27597095,197.69,197.56,40.0142691]
[1736349427942,24.05285495,197.69,197.53,40.0142691]
[1736349428139,24.05285495,197.69,197.54,40.77326832]
[1736349428140,20.0,197.66,197.54,40.77326832]
[1736349428345,20.0,197.66,197.54,0.75899922]
[1736349428654,0.27597095,197.65,197.53,40.0142691]
[1736349428854,20.0,197.68,197.56,40.0142691]
[1736349429024,0.27597095,197.67,197.52,40.0142691]
[1736349429218,20.0,197.68,197.53,0.75903623]
[1736349429441,3.14,197.67,197.59,40.0142691]
[1736349429640,3.14,197.67,197.6,40.0142691]
[1736349429842,0.27597095,197.75,197.55,0.75877777]
[1736349429843,0.27597095,197.75,197.64,40.0142691]
[1736349430053,3.14,197.75,197.65,40.0142691]
[1736349430458,6.79477095,197.77,197.64,40.0142691]
[1736349430459,6.5188,197.77,197.64,40.0142691]
[1736349430636,6.5188,197.77,197.57,11.5385]
[1736349430637,3.14,197.76,197.66,40.0142691]
[1736349430962,3.41597095,197.76,197.63,40.0142691]
[1736349431276,3.41597095,197.76,197.66,40.0142691]
[1736349431277,3.14,197.76,197.66,40.0142691]
[1736349431625,20.0,197.74,197.66,40.0142691]
[1736349431825,20.0,197.74,197.63,0.75862739]
[1736349432044,0.27597095,197.73,197.6,40.0142691]
[1736349432527,0.27597095,197.73,197.61,40.0142691]
[1736349432723,20.0,197.74,197.62,0.7587066]
[1736349432920,20.0,197.74,197.57,1.5385]
[1736349432921,0.27597095,197.73,197.58,40.0142691]
[1736349433120,0.27597095,197.73,197.53,40.0142691]
[1736349433121,6.0321,197.7,197.53,40.0142691]
[1736349433342,20.0,197.67,197.5,40.0142691]
[1736349433528,3.41597095,197.66,197.53,40.0142691]
[1736349433733,3.14,197.66,197.56,63.7911531]
[1736349433928,3.14,197.66,197.55,40.0142691]
[1736349434133,3.14,197.66,197.56,24.53579208]
[1736349434444,20.0,197.67,197.61,40.0142691]
[1736349434645,20.0,197.67,197.62,40.77298501]
[1736349434838,9.1721,197.7,197.63,40.0142691]
[1736349435038,3.14,197.7,197.65,40.0142691]
[1736349435354,6.2805,197.76,197.67,23.776884]
[1736349435652,3.14,197.74,197.67,63.7911531]
[1736349435953,20.0,197.73,197.63,40.0142691]
[1736349436141,20.0,197.73,197.62,40.0142691]
[1736349436454,20.0,197.73,197.62,63.7911531]
[1736349436656,20.0,197.73,197.63,40.77290668]
[1736349436958,20.0,197.73,197.57,40.77290936]
[1736349436959,0.27597095,197.72,197.57,40.77290936]
[1736349437133,0.27597095,197.72,197.59,40.0142691]
[1736349437336,20.0,197.73,197.63,40.0142691]
[1736349437534,3.14,197.72,197.63,40.0142691]
[1736349437731,3.14,197.72,197.64,40.77291785]
[1736349437951,3.14,197.72,197.65,23.776884]
[1736349438156,23.14,197.73,197.66,40.0142691]
[1736349438354,3.14,197.73,197.66,40.0142691]
[1736349438661,3.14,197.73,197.65,23.776884]
[1736349438867,23.14,197.73,197.63,40.0142691]
[1736349439167,23.14,197.73,197.61,0.75851938]
[1736349439168,23.14,197.73,197.65,40.0142691]
[1736349439364,23.14,197.73,197.66,23.776884]
[1736349439674,3.14,197.72,197.68,40.0142691]
[1736349439962,3.14,197.71,197.68,40.0142691]
[1736349440564,3.14,197.73,197.7,40.0142691]
[1736349440873,3.14,197.74,197.73,23.776884]
[1736349441170,3.14,197.8,197.73,64.54935119]
[1736349441337,3.14,197.81,197.79,40.0142691]
[1736349441541,3.14,197.81,197.78,40.0142691]
[1736349441864,3.14,197.81,197.79,40.0142691]
[1736349442061,6.5475,197.93,197.81,23.776884]
[1736349442363,3.39597095,197.92,197.79,40.0142691]
[1736349442670,5.0,197.87,197.75,0.75786837]
[1736349442835,0.27597095,197.86,197.71,40.0142691]
[1736349443034,0.27597095,197.88,197.77,40.0142691]
[1736349443272,20.0,197.86,197.75,40.0142691]
[1736349443569,20.0,197.86,197.67,5.0]
[1736349443570,3.14,197.88,197.79,40.0142691]
[1736349443776,3.14,197.88,197.77,63.7911531]
[1736349443972,20.0,197.86,197.75,40.0142691]
[1736349444179,0.27597095,197.85,197.71,40.0142691]
[1736349444474,3.16,197.84,197.71,40.0142691]
[1736349444638,3.16,197.84,197.67,6.97831086]
[1736349444639,3.16,197.84,197.73,23.776884]
[1736349444951,0.27597095,197.85,197.73,23.776884]
[1736349445364,20.0,197.86,197.77,23.776884]
[1736349445552,3.18,197.85,197.76,40.0142691]
[1736349445952,3.18,197.85,197.73,40.0142691]
[1736349446319,3.18,197.85,197.74,40.77250069]
[1736349446469,3.18,197.85,197.75,63.7911531]
[1736349447171,3.45597095,197.85,197.69,40.0142691]
[1736349447371,20.0,197.84,197.66,40.0142691]
[1736349447676,20.0,197.84,197.63,2.39392199]
[1736349447677,20.0,197.79,197.64,40.0142691]
[1736349447839,1.92317095,197.78,197.63,40.0142691]
[1736349448041,20.0,197.75,197.64,23.776884]
[1736349448471,3.16,197.77,197.65,40.0142691]
[1736349448671,21.6472,197.78,197.67,40.0142691]
[1736349448974,3.16,197.77,197.69,63.7911531]
[1736349449180,3.16,197.77,197.71,23.776884]
[1736349449377,6.2401,197.82,197.74,23.776884]
[1736349449680,6.2401,197.82,197.75,40.0142691]
[1736349450180,6.2401,197.82,197.74,40.0142691]
[1736349450384,6.2401,197.82,197.72,40.0142691]
[1736349450558,6.2401,197.82,197.73,23.776884]
[1736349450754,6.2401,197.82,197.72,40.0142691]
[1736349450755,6.2401,197.82,197.71,40.0142691]
[1736349450955,6.2401,197.82,197.66,0.75826954]
[1736349450956,6.2401,197.82,197.7,40.0142691]
[1736349451257,6.2401,197.82,197.73,23.776884]
[1736349451453,3.16,197.81,197.75,23.776884]
[1736349451702,3.16,197.81,197.77,23.776884]
[1736349452059,3.16,197.81,197.72,40.0142691]
[1736349452288,3.16,197.81,197.71,40.77243184]
[1736349452770,3.16,197.81,197.71,24.53504674]
[1736349452953,3.16,197.81,197.72,63.7911531]
[1736349453168,3.16,197.81,197.72,24.53513994]
[1736349453374,3.16,197.81,197.76,23.776884]
[1736349453585,3.16,197.81,197.76,24.53496254]
[1736349453802,3.16,197.81,197.76,23.776884]
[1736349454176,3.16,197.81,197.74,40.0142691]
[1736349454372,3.16,197.81,197.75,0.75816525]
[1736349454577,3.16,197.81,197.76,23.776884]
[1736349454883,3.14,197.84,197.79,63.7911531]
[1736349455089,6.2957,197.87,197.81,23.776884]
[1736349455270,3.14,197.86,197.81,0.7579056]
[1736349455589,3.14,197.86,197.79,40.0142691]
[1736349455886,3.14,197.86,197.8,40.0142691]
[1736349456085,3.14,197.86,197.81,64.54910722]
[1736349456262,3.14,197.86,197.81,24.53483812]
[1736349456583,6.3422,197.91,197.81,24.53483812]
[1736349456788,3.14,197.9,197.81,64.54910722]
[1736349457088,3.14,197.9,197.81,24.53483812]
[1736349457466,3.14,197.9,197.81,64.54910722]
[1736349457684,3.14,197.9,197.81,24.53483812]
[1736349457876,3.14,197.9,197.81,64.54910722]
[1736349458076,3.14,197.9,197.81,24.53483812]
[1736349458274,3.14,197.9,197.81,64.54910722]
[1736349458469,3.12,197.91,197.86,23.776884]
[1736349458674,3.12,197.91,197.86,64.54886941]
[1736349459060,3.12,197.91,197.86,0.75771631]
[1736349459266,3.12,197.91,197.81,0.75775748]
[1736349460008,0.27597095,197.9,197.74,40.0142691]
[1736349460165,20.0,197.86,197.73,0.75801789]
[1736349460362,20.0,197.86,197.74,40.0142691]
[1736349460567,20.0,197.86,197.75,40.77236893]
[1736349461066,20.0,197.86,197.78,23.776884]
[1736349461321,6.3418,197.89,197.78,64.54915583]
[1736349461500,6.3418,197.89,197.79,23.776884]
[1736349461801,20.0,197.86,197.73,40.0142691]
[1736349461974,20.0,197.86,197.72,40.0142691]
[1736349462175,20.0,197.86,197.73,0.75822839]
[1736349462361,3.12,197.85,197.74,40.0142691]
[1736349462581,3.12,197.85,197.76,40.0142691]
[1736349463114,3.12,197.84,197.78,23.776884]
[1736349463398,3.12,197.84,197.8,23.776884]
[1736349464301,6.3418,197.89,197.82,23.776884]
[1736349464598,3.12,197.88,197.82,23.776884]
[1736349464800,3.12,197.88,197.82,0.75790559]
[1736349465126,3.12,197.88,197.83,23.776884]
[1736349465327,1.6368,197.93,197.83,23.776884]
[1736349465635,3.12,197.92,197.81,24.56509521]
[1736349465791,20.0,197.91,197.8,25.32298434]
[1736349465992,20.0,197.91,197.8,0.75788913]
[1736349466323,20.27597095,197.9,197.76,24.56509521]
[1736349466497,20.0,197.9,197.79,24.56509521]
[1736349466821,20.27597095,197.91,197.76,24.56509521]
[1736349466987,0.27597095,197.89,197.75,24.56509521]
[1736349467191,0.27597095,197.89,197.75,0.75810782]
[1736349467415,0.27597095,197.89,197.75,25.32320303]
[1736349467719,0.27597095,197.89,197.75,0.75810782]
[1736349467921,20.0,197.9,197.78,24.56509521]
[1736349468219,20.0,197.9,197.8,48.34197921]
[1736349468423,3.12,197.89,197.82,48.34197921]
[1736349468595,3.1,197.88,197.83,25.32291826]
[1736349468795,3.1,197.88,197.84,23.776884]
[1736349469516,3.1,197.89,197.86,23.776884]
[1736349470394,3.1,197.89,197.88,23.776884]
[1736349470796,3.1,197.89,197.77,25.32287758]
[1736349471021,3.1,197.89,197.76,25.32287758]
[1736349471240,3.1,197.89,197.79,23.776884]
[1736349471399,3.1,197.89,197.79,24.56509521]
[1736349471602,3.1,197.89,197.78,25.32310131]
[1736349471909,1.6495,197.88,197.75,25.32306413]
[1736349472221,20.0,197.87,197.75,0.75796892]
[1736349472414,3.1,197.86,197.75,0.75796892]
[1736349472816,20.0,197.85,197.75,0.75796892]
[1736349473036,20.0,197.85,197.76,23.776884]
[1736349473206,3.1,197.86,197.76,23.776884]
[1736349473403,1.6495,197.88,197.77,25.32320067]
[1736349473604,3.1,197.87,197.77,25.32320067]
[1736349474146,3.1,197.87,197.78,23.776884]
[1736349474441,20.0,197.86,197.77,0.75800836]
[1736349474805,20.0,197.86,197.78,23.776884]
[1736349475243,20.0,197.86,197.77,0.75800836]
[1736349475244,3.1,197.87,197.77,0.75800836]
[1736349475408,6.1645,197.86,197.75,0.75810586]
[1736349475602,6.1645,197.86,197.76,23.776884]
[1736349475837,6.1645,197.86,197.78,23.776884]
[1736349476004,6.1645,197.86,197.79,0.75805877]
[1736349476209,3.08,197.85,197.8,23.776884]
[1736349476725,3.08,197.85,197.81,0.75794133]
[1736349477236,3.08,197.85,197.8,23.776884]
[1736349478346,3.08,197.85,197.79,23.776884]
[1736349478524,3.08,197.85,197.8,0.75796018]
[1736349478708,6.2141,197.91,197.85,23.776884]
[1736349478911,3.06,197.9,197.87,48.34197921]
[1736349479126,3.06,197.9,197.88,0.75773191]
[1736349479621,3.06,197.9,197.87,23.776884]
[1736349480230,3.06,197.9,197.89,23.776884]
[1736349480430,3.06,197.94,197.89,48.34197921]
[1736349480739,3.06,197.95,197.91,48.34197921]
[1736349481045,3.06,197.95,197.93,23.776884]
[1736349481543,6.0755,198.0,197.94,25.32260939]
[1736349481745,3.06,197.99,197.95,48.34197921]
[1736349481952,3.06,197.99,197.96,0.75739962]
[1736349482125,3.06,197.99,197.97,23.776884]
[1736349482325,3.06,198.06,197.99,23.776884]
[1736349482547,3.06,198.06,198.02,24.56509521]
[1736349482839,7.81113418,198.08,198.02,24.56509521]
[1736349482840,7.81113418,198.08,198.03,0.7571347]
[1736349483019,3.06,198.07,198.03,0.7571347]
[1736349483228,3.04,198.06,198.04,23.776884]
[1736349483638,3.04,198.06,198.01,0.75715727]
[1736349484024,3.04,198.06,198.04,23.776884]
[1736349484335,3.04,198.06,198.05,49.09897787]
[1736349484652,3.04,198.11,198.05,49.09897787]
[1736349484954,3.04,198.11,198.08,23.776884]
[1736349485128,3.04,198.11,198.08,24.53381756]
[1736349485451,3.04,198.14,198.08,24.53381756]
[1736349485753,3.04,198.14,198.05,0.75684671]
[1736349485938,20.0,198.13,198.05,0.75684671]
[1736349486532,20.27597095,198.12,197.97,0.75715463]
[1736349486849,20.27597095,198.12,198.0,24.56509521]
[1736349486850,20.0,198.12,198.0,24.56509521]
[1736349487048,20.0,198.12,197.97,0.75715463]
[1736349487049,20.0,198.13,198.01,0.75716336]
[1736349487345,20.27597095,198.12,197.98,0.75721803]
[1736349487551,3.06,198.11,197.98,25.32231324]
[1736349487757,3.06,198.11,198.01,23.776884]
[1736349488060,3.06,198.11,198.03,23.776884]
[1736349488350,6.3993,198.16,198.04,0.75707644]
[1736349488531,3.06,198.15,198.05,48.34197921]
[1736349488730,3.06,198.15,198.07,48.34197921]
[1736349488937,3.06,198.15,198.09,23.776884]
[1736349489253,3.06,198.15,198.11,23.776884]
[1736349489551,5.0,198.26,198.11,23.776884]
[1736349489552,3.06,198.23,198.12,0.75678974]
[1736349489753,20.0,198.22,198.1,0.75668345]
[1736349489923,20.27597095,198.22,198.1,0.75668345]
[1736349490340,0.27597095,198.22,198.11,23.776884]
[1736349490543,3.06,198.21,198.13,48.34197921]
[1736349490749,3.06,198.21,198.08,12.6211]
[1736349490750,3.06,198.21,198.14,0.75661858]
[1736349490921,3.06,198.21,198.09,0.75672497]
[1736349491124,3.33597095,198.21,198.07,0.75676451]
[1736349491321,3.06,198.2,198.07,0.75676451]
[1736349491749,23.06,198.2,198.07,0.75676451]
[1736349492056,0.27597095,198.19,198.03,24.56509521]
[1736349492239,0.27597095,198.19,198.04,25.32209264]
[1736349492551,0.27597095,198.19,198.05,23.776884]
[1736349492746,0.27597095,198.19,198.03,24.56509521]
[1736349492951,0.27597095,198.19,198.03,23.776884]
[1736349493128,0.27597095,198.19,198.05,23.776884]
[1736349493455,3.06,198.18,198.07,48.34197921]
[1736349493649,3.06,198.18,198.09,48.34197921]
[1736349493824,3.06,198.18,198.11,23.776884]
[1736349494025,3.06,198.18,198.06,24.56509521]
[1736349494328,3.06,198.18,198.08,23.776884]
[1736349494533,3.06,198.18,198.1,23.776884]
[1736349494829,20.0,198.22,198.1,23.776884]
[1736349495031,20.0,198.22,198.04,24.56509521]
[1736349495032,3.04,198.17,198.04,24.56509521]
[1736349495254,3.04,198.17,198.02,26.91850032]
[1736349495558,3.04,198.16,198.05,23.776884]
[1736349495757,3.04,198.15,198.08,23.776884]
[1736349495930,3.04,198.15,198.1,23.776884]
[1736349496237,3.04,198.15,198.12,23.776884]
[1736349496449,3.06,198.19,198.12,23.776884]
[1736349496760,3.06,198.19,198.07,24.56509521]
[1736349496969,3.06,198.19,198.08,0.75688775]
[1736349497255,3.06,198.19,198.09,23.776884]
[1736349497441,3.06,198.19,198.1,0.75684389]
[1736349497856,3.06,198.19,198.11,48.34197921]
[1736349498031,1.77707095,198.27,198.13,23.776884]
[1736349498032,1.5011,198.27,198.13,23.776884]
[1736349498233,3.04,198.24,198.12,23.776884]
[1736349498563,3.04,198.24,198.12,49.09872141]
[1736349498883,3.04,198.24,198.14,23.776884]
[1736349499041,3.04,198.24,198.14,24.5335105]
[1736349499243,20.0,198.22,198.14,24.5335105]
[1736349499429,3.04,198.24,198.14,25.32172171]
[1736349499634,20.0,198.22,198.15,23.776884]
[1736349499961,20.0,198.22,198.14,0.7566265]
[1736349500358,1.5011,198.27,198.15,48.34197921]
[1736349500534,3.04,198.24,198.15,48.34197921]
[1736349500732,20.0,198.22,198.14,0.7565573]
[1736349500939,3.04,198.21,198.14,0.7565573]
[1736349501467,3.04,198.21,198.13,0.75664676]
[1736349501631,3.04,198.21,198.16,23.776884]
[1736349501826,3.04,198.21,198.13,0.75667094]
[1736349502045,3.04,198.21,198.11,0.75674068]
[1736349502255,3.04,198.21,198.12,23.776884]
[1736349502440,3.04,198.21,198.11,0.75674068]
[1736349502845,3.04,198.21,198.12,23.776884]
[1736349503258,3.04,198.21,198.11,23.776884]
[1736349503551,3.31597095,198.21,198.06,0.75681154]
[1736349503760,20.0,198.16,198.02,0.75690783]
[1736349503946,20.0,198.16,198.02,20.75690783]
[1736349504141,20.0,198.16,198.02,0.75690783]
[1736349504363,20.0,198.16,198.05,24.56509521]
[1736349504678,20.0,198.16,198.03,12.6243]
[1736349504679,20.0,198.16,198.06,0.75690883]
[1736349504884,20.0,198.16,198.04,25.32209984]
[1736349505072,20.0,198.16,198.06,23.776884]
[1736349505385,20.0,198.16,198.04,25.32209984]
[1736349505583,20.0,198.16,198.04,0.75700463]
[1736349505881,20.0,198.16,197.98,26.6439]
[1736349505882,0.27597095,198.15,198.0,24.56509521]
[1736349506040,20.0,198.16,198.03,23.776884]
[1736349506341,20.0,198.16,198.03,0.75702033]
[1736349506540,3.02,198.15,198.06,23.776884]
[1736349506759,3.02,198.14,198.08,23.776884]
[1736349508141,3.02,198.14,198.07,23.776884]
[1736349508342,20.0,198.16,198.05,24.56509521]
[1736349508556,3.0,198.15,198.06,0.75693225]
[1736349508766,3.0,198.15,198.08,24.56509521]
[1736349508969,6.2934,198.19,198.09,49.09881228]
[1736349509145,3.0,198.17,198.11,23.776884]
[1736349509349,8.1954,198.24,198.13,23.776884]
[1736349509542,3.0,198.23,198.15,23.776884]
[1736349510345,3.0,198.23,198.12,48.34197921]
[1736349510543,3.0,198.23,198.13,0.75670379]
[1736349510857,20.0,198.21,198.13,0.75670379]
[1736349511058,20.0,198.21,198.09,24.56509521]
[1736349511253,20.0,198.21,198.1,25.32186872]
[1736349511452,20.0,198.21,198.11,24.56509521]
[1736349511654,6.6102,198.24,198.15,23.776884]
[1736349511970,9.6102,198.24,198.18,23.776884]
[1736349512466,3.0,198.28,198.19,0.75648645]
[1736349513054,1.5361,198.29,198.2,23.776884]
[1736349513264,20.0,198.27,198.2,23.776884]
[1736349513584,3.0,198.28,198.2,23.776884]
[1736349513918,3.0,198.28,198.22,23.776884]
[1736349514051,20.0,198.27,198.22,23.776884]
[1736349514252,20.0,198.27,198.2,23.776884]
[1736349514473,2.98,198.29,198.21,0.75640356]
[1736349514848,2.98,198.29,198.22,23.776884]
[1736349515246,6.0566,198.41,198.28,24.56509521]
[1736349515451,6.0566,198.41,198.27,23.776884]
[1736349515452,7.981,198.39,198.29,0.75603319]
[1736349515669,7.981,198.39,198.23,1.5908]
[1736349515670,7.981,198.39,198.25,24.56509521]
[1736349515874,7.981,198.39,198.27,23.776884]
[1736349516077,7.981,198.39,198.27,24.53304304]
[1736349516284,20.0,198.36,198.27,24.53304304]
[1736349516588,20.0,198.36,198.27,49.09813825]
[1736349516943,0.27597095,198.38,198.24,24.56509521]
[1736349517144,0.27597095,198.38,198.18,2.35636603]
[1736349517145,20.0,198.36,198.18,2.35636603]
[1736349517374,7.981,198.39,198.18,0.75626603]
[1736349517375,20.0,198.34,198.18,0.75626603]
[1736349517583,20.0,198.3,198.18,25.32136124]
[1736349517781,3.0,198.29,198.18,0.75626603]
[1736349517986,1.5066,198.28,198.17,0.75659333]
[1736349518185,1.5066,198.28,198.18,23.776884]
[1736349518387,1.5066,198.28,198.19,0.75659186]
[1736349518656,3.0,198.27,198.19,0.75659186]
[1736349518907,3.0,198.27,198.17,0.75654275]
[1736349519062,3.0,198.27,198.15,0.75661717]
[1736349519260,3.27597095,198.27,198.12,24.56509521]
[1736349519485,3.0,198.27,198.14,24.56509521]
[1736349520076,3.0,198.27,198.15,0.7566275]
[1736349520290,3.0,198.27,198.15,25.32172271]
[1736349520460,3.0,198.27,198.16,24.56509521]
[1736349520654,3.0,198.27,198.17,24.53342763]
[1736349520967,3.27597095,198.27,198.12,24.56509521]
[1736349521276,3.27597095,198.27,198.1,37.94100936]
[1736349521489,3.27597095,198.27,198.13,24.56509521]
[1736349521789,3.27597095,198.27,198.15,23.776884]
[1736349522161,3.0,198.27,198.15,23.776884]
[1736349522361,3.0,198.27,198.16,49.0986018]
[1736349522575,3.0,198.27,198.17,23.776884]
[1736349522869,3.0,198.27,198.19,23.776884]
[1736349523487,2.98,198.31,198.22,24.56509521]
[1736349523785,6.2352,198.33,198.24,48.34197921]
[1736349523988,6.2352,198.33,198.23,0.75631599]
[1736349523989,1.517,198.4,198.28,23.776884]
[1736349524201,1.517,198.4,198.28,49.0980799]
[1736349524202,9.3161,198.39,198.28,49.0980799]
[1736349524362,6.3361,198.39,198.32,23.776884]
[1736349524560,6.3361,198.39,198.34,23.776884]
[1736349524961,6.3361,198.39,198.22,17.6122]
[1736349524962,6.3361,198.39,198.25,24.56509521]
[1736349525165,20.0,198.36,198.26,0.75618209]
[1736349525977,20.0,198.36,198.27,23.776884]
[1736349526176,20.0,198.36,198.27,24.53310839]
[1736349526395,2.98,198.35,198.27,24.53310839]
[1736349526891,20.0,198.36,198.27,49.0982036]
[1736349527099,2.98,198.35,198.27,49.0982036]
[1736349527289,2.98,198.35,198.27,24.53310839]
[1736349527492,2.98,198.34,198.3,23.776884]
[1736349527666,2.98,198.34,198.33,23.776884]
[1736349528065,2.98,198.34,198.32,0.75597255]
[1736349528265,2.98,198.37,198.31,23.776884]
[1736349529071,2.98,198.37,198.32,0.75601339]
[1736349529265,20.0,198.36,198.32,0.75601339]
[1736349529475,20.0,198.36,198.24,37.93164146]
[1736349529700,20.0,198.36,198.24,13.36654625]
[1736349529870,20.0,198.36,198.25,23.776884]
[1736349530414,20.27597095,198.36,198.21,0.7562734]
[1736349530703,2.98,198.35,198.21,25.32136861]
[1736349531013,20.0,198.36,198.23,23.776884]
[1736349531173,2.98,198.34,198.23,23.776884]
[1736349531377,20.0,198.36,198.23,0.75635861]
[1736349531675,2.98,198.35,198.26,23.776884]
[1736349532684,2.98,198.35,198.28,23.776884]
[1736349533095,2.98,198.35,198.25,23.776884]
[1736349533485,2.98,198.35,198.22,25.32131499]
[1736349533683,3.25597095,198.35,198.22,25.32131499]